bitfinex/quotes_ETHUSD_20251012
["timestamp","ask_amount","ask_price","bid_price","bid_amount"]
[1760273820186,1.92,3834.6,3834.4,14.963]
[1760273821119,1.92,3834.7,3834.5,0.463]
[1760273821270,1.92,3834.7,3834.6,0.463]
[1760273821470,2.60776592,3834.7,3834.6,0.463]
[1760273821787,2.60776592,3834.7,3834.4,14.5]
[1760273822200,2.60776592,3834.7,3834.4,14.963]
[1760273822389,2.60776592,3834.7,3834.5,0.463]
[1760273823499,1.92,3834.7,3834.4,14.5]
[1760273823711,1.92,3834.7,3834.5,0.463]
[1760273824018,7.06,3837.5,3834.4,14.5]
[1760273824019,1.92,3835.1,3834.6,3.07082716]
[1760273824205,1.92,3835.1,3834.7,0.463]
[1760273824589,1.92,3835.2,3834.7,0.463]
[1760273825119,4.52743783,3835.2,3834.8,0.463]
[1760273825273,4.52743783,3835.2,3834.9,0.463]
[1760273825474,4.52743783,3835.2,3835.0,0.463]
[1760273825919,1.92,3835.3,3834.6,2.60777992]
[1760273826226,4.52738053,3835.3,3834.7,0.463]
[1760273826397,1.92,3835.3,3834.7,0.463]
[1760273826590,1.92,3835.0,3834.7,0.463]
[1760273826888,2.607571,3835.0,3834.8,0.463]
[1760273827124,2.60752147,3835.1,3834.8,0.463]
[1760273828083,2.60752147,3835.1,3834.9,0.1296]
[1760273828277,2.60756192,3835.0,3834.9,0.1296]
[1760273829694,2.71636192,3835.0,3834.9,0.1296]
[1760273829894,2.60756192,3835.0,3834.9,0.1296]
[1760273830095,4.52756192,3835.0,3834.9,0.1296]
[1760273833119,4.52756192,3835.0,3834.9,14.6296]
[1760273833317,4.52756192,3835.0,3834.9,14.5]
[1760273833318,4.63636192,3835.0,3834.9,14.5]
[1760273833537,4.76596192,3835.0,3834.9,14.5]
[1760273833748,2.60790194,3834.5,3833.9,0.002]
[1760273833948,2.60824204,3834.0,3833.9,0.1324]
[1760273834291,2.60824204,3834.0,3833.9,14.6324]
[1760273836225,2.60824204,3834.0,3833.9,15.0954]
[1760273836860,0.2384,3834.5,3833.9,15.0954]
[1760273836861,0.1296,3834.5,3833.9,15.0954]
[1760273837149,2.60805249,3834.3,3834.2,0.1304]
[1760273837549,2.60805249,3834.3,3834.2,0.5595]
[1760273837925,2.60805249,3834.3,3834.2,0.1304]
[1760273839729,2.60805249,3834.3,3834.2,14.6304]
[1760273839930,2.60805249,3834.3,3834.2,15.0595]
[1760273840662,2.60803797,3834.3,3834.2,15.0595]
[1760273841456,4.52803797,3834.3,3834.2,15.0595]
[1760273842630,4.52803797,3834.3,3834.2,14.6304]
[1760273844474,2.60784556,3834.6,3834.2,15.0595]
[1760273844638,0.1296,3834.8,3834.3,0.4291]
[1760273844838,2.60796995,3834.4,3834.3,0.4291]
[1760273847194,0.001,3835.0,3834.3,0.4291]
[1760273847492,1.92,3834.8,3834.6,0.1296]
[1760273847693,2.6085883,3835.0,3834.7,0.4291]
[1760273847872,1.92,3834.9,3834.6,0.1296]
[1760273848072,1.92,3834.9,3834.7,0.4291]
[1760273848266,1.92,3834.9,3834.8,0.4291]
[1760273848467,0.001,3835.0,3834.8,0.4291]
[1760273848680,0.001,3835.0,3834.9,0.4291]
[1760273848885,0.001,3835.0,3834.9,0.5587]
[1760273849086,0.001,3835.0,3834.9,15.0587]
[1760273850806,0.001,3835.0,3834.9,14.6296]
[1760273851002,0.001,3835.0,3834.9,15.1028]
[1760273857120,0.001,3835.0,3834.9,14.6296]
[1760273857273,2.60856192,3835.0,3834.9,14.6296]
[1760273857998,0.001,3835.0,3834.9,14.6296]
[1760273858175,2.60856192,3835.0,3834.9,14.6296]
[1760273860377,4.52856192,3835.0,3834.9,14.5]
[1760273860605,4.75716192,3835.0,3834.9,14.5]
[1760273861645,1.92,3834.5,3834.4,0.1296]
[1760273861834,2.60790194,3834.5,3834.4,0.1296]
[1760273862031,2.60790194,3834.5,3834.4,15.1028]
[1760273863413,1.92,3834.5,3834.4,15.1028]
[1760273863754,1.92,3834.7,3834.4,15.1028]
[1760273863961,1.92,3834.7,3834.5,0.4732]
[1760273864158,1.92,3834.7,3834.4,14.6296]
[1760273864401,1.92,3834.7,3834.6,0.4732]
[1760273864933,1.92,3834.8,3834.6,0.4732]
[1760273865244,2.60769792,3834.8,3834.7,0.4657]
[1760273865620,0.001,3835.0,3834.4,0.1296]
[1760273865824,0.001,3835.0,3834.9,0.1296]
[1760273866119,0.001,3835.0,3834.9,14.6296]
[1760273866463,0.001,3835.0,3834.9,17.70292992]
[1760273867256,0.001,3835.0,3834.9,15.0953]
[1760273869476,0.001,3835.0,3834.9,17.70292992]
[1760273870377,0.001,3835.0,3834.9,15.0953]
[1760273875992,0.001,3835.0,3834.9,17.70292992]
[1760273881295,0.001,3835.0,3834.9,15.0953]
[1760273881595,0.001,3835.0,3834.9,15.0889]
[1760273882462,0.001,3835.0,3834.9,14.6296]
[1760273883063,0.001,3835.0,3834.9,15.0889]
[1760273884304,0.001,3835.0,3834.9,14.6296]
[1760273885263,0.001,3835.0,3834.9,15.0889]
[1760273889099,0.001,3835.0,3834.9,17.69652992]
[1760273908236,0.001,3835.0,3834.9,19.63652992]
[1760273909064,0.001,3835.0,3834.9,17.69652992]
[1760273909639,0.001,3835.0,3834.9,20.27012992]
[1760273910439,0.001,3835.0,3834.9,20.35464756]
[1760273913289,0.001,3835.0,3834.9,18.43464756]
[1760273916289,0.001,3835.0,3834.9,20.37464756]
[1760273917502,0.001,3835.0,3834.9,18.43464756]
[1760273927181,0.001,3835.0,3834.9,17.80104756]
[1760273929910,0.001,3835.0,3834.9,18.43464756]
[1760273930098,0.001,3835.0,3834.9,20.37464756]
[1760273930813,0.001,3835.0,3834.9,18.30504756]
[1760273930981,0.001,3835.0,3834.9,18.43464756]
[1760273933118,0.001,3835.0,3834.9,20.35464756]
[1760273937511,0.001,3835.0,3834.9,22.29464756]
[1760273941953,1e-08,3836.4,3836.3,3.2402783]
[1760273942159,0.001,3838.6,3836.7,3.24000654]
[1760273942363,0.001,3838.6,3837.9,2.60555254]
[1760273942669,0.001,3838.6,3838.0,14.5]
[1760273942849,0.001,3838.6,3838.0,14.9415]
[1760273943015,1.921,3838.6,3838.1,0.4415]
[1760273943426,4.52612261,3838.6,3838.1,0.4415]
[1760273943626,4.52612261,3838.6,3838.1,14.9415]
[1760273944765,2.60612261,3838.6,3838.1,14.9415]
[1760273946085,2.60612699,3838.6,3838.1,14.9415]
[1760273946254,0.001,3838.6,3838.1,14.9415]
[1760273946979,0.001,3838.6,3838.1,17.76675582]
[1760273949184,0.001,3838.6,3838.1,18.55016529]
[1760273951894,0.001,3838.6,3838.1,18.67976529]
[1760273958573,0.001,3838.6,3838.1,19.31336529]
[1760273958881,0.001,3838.6,3838.1,21.23336529]
[1760273959906,0.001,3839.0,3838.1,21.23336529]
[1760273959907,1e-08,3839.0,3838.9,2.60491286]
[1760273960210,1e-08,3839.0,3838.9,5.28811286]
[1760273960377,1e-08,3839.0,3838.9,5.73571286]
[1760273960704,1e-08,3839.0,3838.9,21.01877062]
[1760273974941,1e-08,3839.0,3838.9,21.02077062]
[1760273975236,1e-08,3839.0,3838.9,20.38717062]
[1760273977941,1e-08,3839.0,3838.9,20.89117062]
[1760273978244,0.001,3839.4,3839.3,5.15824147]
[1760273978420,0.001,3839.8,3839.7,3.23797013]
[1760273978617,1.92,3842.4,3841.3,2.60328534]
[1760273979037,1.92,3842.4,3841.3,17.55088534]
[1760273979340,4.52256127,3842.4,3841.3,17.55088534]
[1760273979521,2.60256127,3842.4,3841.3,17.55088534]
[1760273979722,2.60263359,3842.3,3841.3,17.55088534]
[1760273979916,1.921,3842.2,3841.3,17.55088534]
[1760273980119,1.921,3842.2,3841.3,17.65525571]
[1760273980326,0.001,3842.2,3841.3,17.65525571]
[1760273980526,1.921,3842.2,3841.3,17.65525571]
[1760273981441,2.60368922,3842.2,3841.3,17.65525571]
[1760273981749,1.92,3841.6,3841.3,14.5]
[1760273984007,4.62495855,3841.8,3841.3,14.5]
[1760273984609,2.60302305,3841.7,3841.3,14.5]
[1760273984847,2.60308451,3841.6,3841.3,14.5]
[1760273985045,2.60421757,3841.4,3841.3,14.5]
[1760273985245,0.1032,3841.4,3840.1,2.60409885]
[1760273985451,1.92,3841.0,3840.4,0.4595]
[1760273985651,1.92,3841.0,3840.5,14.5]
[1760273985818,2.0222,3841.0,3840.5,14.5]
[1760273986020,4.62570708,3841.0,3840.5,14.5]
[1760273986217,1.92,3840.8,3840.5,14.5]
[1760273987649,2.60363826,3840.8,3840.5,14.5]
[1760273987951,2.60363826,3840.8,3840.6,0.1296]
[1760273988149,2.60369203,3840.7,3840.6,0.1296]
[1760273988348,4.52369203,3840.7,3840.6,0.1296]
[1760273989125,4.52369203,3840.7,3839.8,0.2171]
[1760273989126,1.92,3840.6,3839.2,0.4484]
[1760273989322,3.23702656,3841.1,3839.9,0.1296]
[1760273989323,0.2318,3840.5,3839.9,0.1296]
[1760273989523,0.2318,3840.5,3839.2,0.4484]
[1760273989524,1.92,3840.0,3839.2,0.4484]
[1760273989726,2.60435987,3839.8,3839.7,0.1296]
[1760273990147,2.70655987,3839.8,3839.7,0.1296]
[1760273990932,2.0222,3839.8,3839.3,14.5]
[1760273991141,1.92,3839.6,3839.4,0.1296]
[1760273991377,4.52451878,3839.5,3839.4,0.1296]
[1760273991682,2.60457363,3839.4,3839.3,14.5]
[1760273993273,4.62797363,3839.4,3839.3,14.5]
[1760273993576,5.5419831,3839.4,3839.3,14.5]
[1760273994346,5.4385831,3839.4,3839.3,14.5]
[1760273994632,4.65517363,3839.4,3839.3,14.5]
[1760273995062,4.75857363,3839.4,3839.3,14.5]
[1760273996468,2.60475165,3839.2,3838.9,0.002]
[1760273996983,4.52475165,3839.2,3839.1,14.5]
[1760273999989,1.92,3839.2,3839.1,14.5]
[1760274000187,1.92,3839.2,3839.1,15.078]
[1760274000777,1.92,3839.2,3839.1,14.6296]
[1760274003294,4.52470931,3839.2,3839.1,14.6296]
[1760274003498,4.63040931,3839.2,3839.1,14.5]
[1760274003796,4.63040931,3839.2,3838.9,0.002]
[1760274003797,4.52484501,3839.0,3838.9,0.002]
[1760274003959,5.15844501,3839.0,3838.9,0.002]
[1760274004159,5.26414501,3839.0,3838.9,0.002]
[1760274011059,4.63054501,3839.0,3838.9,0.002]
[1760274011191,2.60484501,3839.0,3838.9,0.002]
[1760274011928,2.71054501,3839.0,3838.9,0.002]
[1760274013128,2.60484501,3839.0,3838.9,0.002]
[1760274013833,4.52484501,3839.0,3838.9,0.002]
[1760274014405,4.63054501,3839.0,3838.9,0.002]
[1760274015946,5.26414501,3839.0,3838.9,0.002]
[1760274021953,3.23871644,3838.6,3838.5,1e-08]
[1760274022300,5.15871644,3838.6,3838.5,1e-08]
[1760274022618,5.26441644,3838.6,3838.5,1e-08]
[1760274027369,5.26541644,3838.6,3838.5,1e-08]
[1760274043796,5.26411386,3838.6,3838.5,1e-08]
[1760274056036,5.15841386,3838.6,3838.5,1e-08]
[1760274056234,5.26411386,3838.6,3838.5,1e-08]
[1760274061808,6.04794703,3838.6,3838.5,1e-08]
[1760274062009,6.04794703,3838.6,3838.1,0.002]
[1760274062010,4.52627068,3836.9,3836.0,0.002]
[1760274062243,4.52627068,3836.9,3836.2,0.4711]
[1760274062539,4.63297068,3836.9,3836.2,0.4711]
[1760274063046,4.63297068,3836.9,3836.3,14.5]
[1760274065147,5.26657068,3836.9,3836.3,14.5]
[1760274066250,3.24014242,3836.5,3836.4,1e-08]
[1760274066454,5.16014242,3836.5,3836.4,1e-08]
[1760274066627,5.26684242,3836.5,3836.4,1e-08]
[1760274067860,1.92,3836.5,3836.4,1e-08]
[1760274068030,4.52654242,3836.5,3836.4,1e-08]
[1760274068236,4.63324242,3836.5,3836.4,1e-08]
[1760274069451,2.6064784,3836.6,3836.4,1e-08]
[1760274069965,1.92,3836.5,3836.4,1e-08]
[1760274070136,2.60654242,3836.5,3836.4,1e-08]
[1760274070338,1.92,3836.5,3836.4,1e-08]
[1760274070672,2.0496,3836.7,3836.4,1e-08]
[1760274070825,0.1296,3836.7,3836.4,1e-08]
[1760274071343,2.60654242,3836.5,3836.4,1e-08]
[1760274071543,1.92,3836.5,3836.4,1e-08]
[1760274072586,4.63324242,3836.5,3836.4,1e-08]
[1760274073480,5.26684242,3836.5,3836.4,1e-08]
[1760274075586,6.0510608,3836.5,3836.4,1e-08]
[1760274075746,5.26684242,3836.5,3836.4,1e-08]
[1760274078184,5.26784242,3836.5,3836.4,1e-08]
[1760274090076,4.63424242,3836.5,3836.4,1e-08]
[1760274090391,0.001,3836.5,3836.4,1e-08]
[1760274090576,4.63424242,3836.5,3836.4,1e-08]
[1760274090886,5.26784242,3836.5,3836.4,1e-08]
[1760274099899,4.63424242,3836.5,3836.4,1e-08]
[1760274100088,2.0277,3836.5,3836.4,1e-08]
[1760274100299,4.63424242,3836.5,3836.4,1e-08]
[1760274100614,5.26784242,3836.5,3836.4,1e-08]
[1760274101580,5.39744242,3836.5,3836.4,1e-08]
[1760274102313,5.75388214,3836.5,3836.4,1e-08]
[1760274103120,3.24068605,3835.7,3835.6,1e-08]
[1760274103319,5.16068605,3835.7,3835.6,1e-08]
[1760274103620,5.26848605,3835.7,3835.6,1e-08]
[1760274105818,4.63488605,3835.7,3835.6,1e-08]
[1760274106814,5.26848605,3835.7,3835.6,1e-08]
[1760274107315,5.67731766,3835.7,3835.6,1e-08]
[1760274108323,37.11731766,3835.7,3835.6,1e-08]
[1760274108493,37.11731766,3835.7,3832.2,0.4383]
[1760274108494,4.52871833,3833.3,3832.6,14.5]
[1760274109182,5.27131833,3833.3,3832.6,14.5]
[1760274109785,5.27131833,3833.3,3831.4,0.4383]
[1760274109786,2.60969495,3831.9,3831.4,0.4383]
[1760274110103,2.60961413,3832.0,3831.5,0.4383]
[1760274110307,2.60961413,3832.0,3831.9,14.5]
[1760274110987,4.63861413,3832.0,3831.9,14.5]
[1760274112295,1.92,3832.0,3831.9,14.5]
[1760274112485,2.60864253,3833.5,3831.9,14.5]
[1760274112486,3.24258421,3833.0,3831.9,14.5]
[1760274112707,1.92,3832.3,3831.9,14.9383]
[1760274112903,1.92,3832.7,3832.0,0.4383]
[1760274113107,1.92,3832.7,3832.4,0.002]
[1760274113302,0.1304,3832.9,3832.4,0.002]
[1760274113504,1.92,3832.5,3832.4,0.002]
[1760274115300,1.92,3832.5,3832.4,0.4403]
[1760274115716,0.109,3834.1,3832.4,0.4403]
[1760274116025,2.73898633,3833.5,3832.4,3.17998322]
[1760274116251,1.92,3833.2,3832.9,0.1304]
[1760274116451,2.60876491,3833.3,3832.9,0.1304]
[1760274116652,2.60865951,3833.4,3832.9,0.1304]
[1760274116859,2.60885809,3833.1,3832.9,0.1304]
[1760274117025,1.92,3833.0,3832.9,0.1304]
[1760274117225,1.92,3833.0,3832.9,14.6304]
[1760274117752,2.60892251,3833.0,3832.9,14.6304]
[1760274118077,2.60892251,3833.0,3832.9,14.5]
[1760274118256,4.52892251,3833.0,3832.9,14.5]
[1760274118928,1.92,3833.0,3832.9,14.5]
[1760274119124,1.92,3833.0,3832.9,14.9383]
[1760274119361,2.60781726,3834.7,3832.9,14.9383]
[1760274119557,2.6084224,3833.8,3832.9,0.5687]
[1760274119725,2.6084224,3833.8,3832.9,3.04728918]
[1760274119926,1.92,3834.0,3833.4,0.1304]
[1760274120166,2.1594,3834.1,3833.5,14.5]
[1760274120367,2.6082949,3834.0,3833.5,14.5]
[1760274120526,2.60832074,3833.9,3833.5,14.5]
[1760274120863,1.92,3833.8,3833.5,14.5]
[1760274121069,2.60824573,3834.0,3833.5,14.5]
[1760274121273,1.92,3833.8,3833.5,14.5]
[1760274121639,2.60840183,3833.8,3833.5,14.5]
[1760274122478,2.60832161,3833.9,3833.5,14.5]
[1760274122782,1.92,3833.8,3833.5,14.9383]
[1760274122957,2.60824297,3834.0,3833.5,14.9383]
[1760274123161,2.60826708,3834.0,3833.5,14.5]
[1760274123473,2.60812578,3834.2,3833.5,14.5]
[1760274123474,2.60832189,3833.9,3833.5,14.5]
[1760274123894,2.60833474,3833.9,3833.5,14.5]
[1760274124095,0.6336,3834.5,3833.5,14.5]
[1760274124306,2.60826655,3834.0,3833.5,14.5]
[1760274124860,1.92,3834.8,3833.6,0.4383]
[1760274125059,2.60794554,3834.5,3833.6,0.4383]
[1760274125258,2.60794554,3834.5,3833.7,2.60839624]
[1760274125488,2.60784069,3834.6,3833.8,3.04665891]
[1760274125688,2.60792247,3834.5,3833.8,17.54665891]
[1760274125858,1.92,3834.4,3833.9,0.4383]
[1760274126261,1.92,3834.4,3834.0,0.4383]
[1760274126460,1.92,3834.4,3834.1,14.5]
[1760274126699,1.92,3834.4,3834.1,14.9383]
[1760274127264,1.92,3834.5,3834.3,0.2144]
[1760274127575,2.60770471,3834.8,3834.4,0.4383]
[1760274127963,2.60765371,3834.9,3834.5,14.5]
[1760274128394,2.029,3835.7,3834.6,0.4383]
[1760274128597,0.3254,3836.1,3834.7,2.60776274]
[1760274128806,2.60728438,3835.5,3834.8,0.4383]
[1760274128978,4.5272961,3835.4,3834.9,14.5]
[1760274129179,4.5272961,3835.4,3835.0,0.4383]
[1760274129400,1.92,3835.5,3834.7,2.60776274]
[1760274129711,2.60730349,3835.4,3835.1,0.4383]
[1760274129909,2.60735796,3835.3,3835.2,14.5]
[1760274130591,2.60723198,3835.5,3835.2,14.9383]
[1760274130592,2.60727688,3835.5,3835.2,14.9383]
[1760274130788,1.92,3835.5,3835.2,14.9383]
[1760274130977,1.92,3835.5,3835.3,0.4383]
[1760274132037,0.001,3835.6,3835.2,14.5]
[1760274132314,2.60735796,3835.3,3835.2,14.5]
[1760274133008,1.921,3835.6,3835.2,14.5]
[1760274133309,2.60723483,3835.5,3835.2,14.5]
[1760274133508,0.001,3835.6,3835.3,0.4383]
[1760274133678,2.60722312,3835.5,3835.3,0.4383]
[1760274133878,2.6072917,3835.4,3835.2,14.5]
[1760274136608,2.60735796,3835.3,3835.2,14.5]
[1760274136822,4.62885796,3835.3,3835.2,14.5]
[1760274136988,2.6077483,3834.8,3834.5,0.1296]
[1760274137518,2.60776592,3834.7,3834.6,14.5]
[1760274138015,0.1296,3835.2,3834.6,14.5]
[1760274138227,1.92,3835.4,3835.1,0.1296]
[1760274138517,2.60729298,3835.4,3835.2,0.4471]
[1760274138730,0.1072,3836.4,3835.3,0.4471]
[1760274138932,1.92,3835.7,3835.5,0.1296]
[1760274139092,2.60708737,3835.7,3835.5,0.1296]
[1760274139297,2.60815403,3835.6,3835.5,0.1296]
[1760274139528,2.60815403,3835.6,3834.7,0.4471]
[1760274139529,2.60736428,3835.3,3834.7,0.4471]
[1760274139725,2.60743599,3835.2,3834.9,0.1296]
[1760274140128,2.60743599,3835.2,3835.0,0.4471]
[1760274140429,2.60749393,3835.1,3835.0,0.4471]
[1760274140593,2.60756192,3835.0,3834.9,0.1296]
[1760274141291,2.60752042,3835.1,3834.9,0.1296]
[1760274141718,2.60756192,3835.0,3834.9,0.1296]
[1760274143600,2.60756192,3835.0,3834.0,0.6777]
[1760274143601,2.60780911,3834.7,3834.0,0.6777]
[1760274143801,2.60783393,3834.6,3834.5,0.1296]
[1760274147240,4.52783393,3834.6,3834.5,0.1296]
[1760274147439,2.159,3834.6,3833.9,0.1304]
[1760274147640,2.60823871,3834.1,3833.9,0.1304]
[1760274147954,2.60824204,3834.0,3833.9,0.1304]
[1760274148141,1.92,3834.4,3833.9,0.4471]
[1760274148342,2.0496,3834.8,3834.0,0.4471]
[1760274148749,1.92,3834.3,3834.0,0.4471]
[1760274149070,2.60806664,3834.3,3834.0,0.4471]
[1760274149459,2.60812292,3834.2,3834.0,0.4471]
[1760274150109,2.60805763,3834.3,3834.0,0.4471]
[1760274150302,2.60811841,3834.2,3834.0,0.4471]
[1760274151013,2.60817401,3834.1,3834.0,0.4471]
[1760274151502,2.60812123,3834.2,3834.0,0.4471]
[1760274152500,2.60806166,3834.3,3834.0,0.4471]
[1760274152707,2.60804805,3834.3,3834.0,0.4471]
[1760274153726,2.6081076,3834.2,3834.0,0.4471]
[1760274154716,2.60817401,3834.1,3834.0,0.4471]
[1760274154923,2.60813097,3834.2,3834.0,0.4471]
[1760274156325,2.60813097,3834.2,3833.9,0.1304]
[1760274156810,2.60813097,3834.2,3834.0,0.4471]
[1760274157020,2.60824204,3834.0,3833.9,0.1304]
[1760274157172,2.60851419,3833.6,3833.5,0.1304]
[1760274158312,2.60846753,3833.7,3833.5,0.1304]
[1760274159706,0.2398,3834.1,3833.5,0.1304]
[1760274159912,2.60844219,3833.8,3833.5,0.1304]
[1760274160221,0.2398,3834.1,3833.5,0.1304]
[1760274160222,2.60845748,3833.7,3833.5,0.1304]
[1760274160422,2.60851419,3833.6,3833.5,0.1304]
[1760274160654,2.60847356,3833.7,3833.5,0.1304]
[1760274162435,2.60840241,3833.8,3833.5,0.1304]
[1760274164451,2.60840241,3833.8,3833.3,0.4661]
[1760274165049,2.60840241,3833.8,3833.1,2.61085162]
[1760274165263,2.60840241,3833.8,3833.2,0.4661]
[1760274165865,2.60844648,3833.7,3833.2,0.4661]
[1760274166065,2.60844648,3833.7,3833.3,0.4661]
[1760274166363,2.60844648,3833.7,3833.1,2.61085162]
[1760274166569,2.60844648,3833.7,3833.3,0.4661]
[1760274166775,2.60844648,3833.7,3833.1,2.61085162]
[1760274166931,2.60844648,3833.7,3833.2,0.4661]
[1760274167131,2.60844648,3833.7,3833.3,0.4661]
[1760274167332,2.60844648,3833.7,3833.4,0.4661]
[1760274168964,2.6094069,3833.8,3833.1,2.61084154]
[1760274169267,2.6094069,3833.8,3833.2,0.4594]
[1760274169652,2.60845226,3833.7,3833.2,0.4594]
[1760274170070,2.60845226,3833.7,3833.1,2.61084154]
[1760274170284,2.60845226,3833.7,3833.3,0.4594]
[1760274170572,2.60940686,3833.8,3833.4,0.4594]
[1760274171387,0.001,3833.8,3833.5,0.4594]
[1760274171672,0.001,3833.8,3833.6,0.4594]
[1760274171868,0.001,3833.8,3833.1,0.002]
[1760274172068,0.001,3833.8,3833.2,0.4594]
[1760274172364,2.60844614,3833.7,3833.2,0.4594]
[1760274172681,2.60844614,3833.7,3833.3,0.4594]
[1760274172883,2.60844614,3833.7,3833.4,0.4594]
[1760274173089,2.60852654,3833.6,3833.5,0.4594]
[1760274173255,2.60847351,3833.7,3833.5,0.4594]
[1760274173460,2.60939336,3833.8,3833.6,0.4594]
[1760274173671,2.60939336,3833.8,3833.7,0.4594]
[1760274173873,2.60939336,3833.8,3833.4,0.4594]
[1760274174162,2.60939336,3833.8,3833.5,0.4594]
[1760274174580,2.60939336,3833.8,3833.6,0.1304]
[1760274174783,0.001,3833.8,3833.7,0.4594]
[1760274174959,0.001,3833.8,3833.7,0.5898]
[1760274175162,0.001,3833.8,3833.7,3.19824614]
[1760274175854,0.001,3833.8,3833.7,17.69824614]
[1760274177384,0.001,3833.8,3833.7,15.0898]
[1760274180793,2.60937811,3833.8,3833.7,15.0898]
[1760274181171,0.001,3833.8,3833.7,15.0898]
[1760274181888,0.001,3833.8,3833.7,14.6304]
[1760274182189,0.001,3833.8,3833.7,15.0898]
[1760274182389,2.60937811,3833.8,3833.7,15.0898]
[1760274182584,0.001,3833.8,3833.7,15.0898]
[1760274183266,2.60937811,3833.8,3833.7,15.0898]
[1760274183463,0.001,3833.8,3833.7,15.0898]
[1760274185967,0.001,3833.8,3833.7,14.6304]
[1760274186892,0.001,3833.8,3833.7,15.0898]
[1760274187598,0.001,3833.8,3833.7,14.6304]
[1760274187902,0.001,3833.8,3833.7,15.0898]
[1760274190307,2.60937811,3833.8,3833.7,14.6304]
[1760274190505,2.71877811,3833.8,3833.7,14.5]
[1760274190805,2.60937811,3833.8,3833.7,14.5]
[1760274192094,2.60878639,3833.2,3833.1,0.002]
[1760274192603,2.71818639,3833.2,3833.1,0.002]
[1760274192810,2.60878639,3833.2,3833.1,0.002]
[1760274193904,0.001,3833.8,3833.1,0.002]
[1760274194106,2.60871291,3833.4,3833.1,0.4614]
[1760274194308,0.1104,3833.8,3833.1,0.002]
[1760274194603,2.60872425,3833.3,3833.1,0.002]
[1760274194788,2.60878639,3833.2,3833.1,0.002]
[1760274198021,2.60878639,3833.2,3833.1,0.4585]
[1760274198806,2.60877452,3833.3,3833.1,0.4585]
[1760274199107,2.60875925,3833.3,3833.1,0.4585]
[1760274199618,0.001,3833.8,3833.1,0.002]
[1760274199807,2.60859829,3833.5,3833.2,0.4565]
[1760274200124,2.60859829,3833.5,3833.3,0.4565]
[1760274200914,2.60853485,3833.6,3833.4,0.4565]
[1760274201118,2.60853485,3833.6,3833.4,14.9565]
[1760274201296,2.60858223,3833.5,3833.4,14.5]
[1760274202004,2.60858223,3833.5,3833.4,14.6304]
[1760274202934,2.60852736,3833.6,3833.4,15.0869]
[1760274203107,2.6084544,3833.7,3833.4,14.6304]
[1760274203312,2.6084544,3833.7,3833.5,0.4565]
[1760274203525,2.60851419,3833.6,3833.5,0.4565]
[1760274204359,2.60844683,3833.7,3833.4,14.6304]
[1760274204645,2.60851419,3833.6,3833.5,0.4565]
[1760274205021,2.60851419,3833.6,3833.4,14.6304]
[1760274205222,2.60851419,3833.6,3833.4,15.0869]
[1760274206051,2.60858223,3833.5,3833.4,15.0869]
[1760274206343,2.60858223,3833.5,3833.4,14.6304]
[1760274207638,2.71798223,3833.5,3833.4,14.5]
[1760274207839,2.71798223,3833.5,3833.1,0.002]
[1760274207840,2.60878639,3833.2,3833.1,0.002]
[1760274208228,4.65918639,3833.2,3833.1,0.002]
[1760274208432,4.76858639,3833.2,3833.1,0.002]
[1760274211087,3.24265865,3832.8,3832.7,1e-08]
[1760274211664,3.35205865,3832.8,3832.7,1e-08]
[1760274213388,2.60905865,3832.8,3832.7,1e-08]
[1760274213587,4.52905865,3832.8,3832.7,1e-08]
[1760274214868,2.60905865,3832.8,3832.7,1e-08]
[1760274215940,2.71845865,3832.8,3832.7,1e-08]
[1760274216145,2.60905865,3832.8,3832.7,1e-08]
[1760274218074,3.35205865,3832.8,3832.7,1e-08]
[1760274218245,5.27205865,3832.8,3832.7,1e-08]
[1760274218566,6.05689252,3832.8,3832.7,1e-08]
[1760274218771,5.27205865,3832.8,3832.7,1e-08]
[1760274218967,5.37670316,3832.8,3832.7,1e-08]
[1760274219976,5.16286288,3832.5,3832.4,1e-08]
[1760274220459,5.27226288,3832.5,3832.4,1e-08]
[1760274221751,5.37693231,3832.5,3832.4,1e-08]
[1760274227206,2.82333231,3832.5,3832.4,1e-08]
[1760274227888,3.45693231,3832.5,3832.4,1e-08]
[1760274228091,2.82333231,3832.5,3832.4,1e-08]
[1760274228488,3.45693231,3832.5,3832.4,1e-08]
[1760274230067,5.37693231,3832.5,3832.4,1e-08]
[1760274233169,0.001,3833.5,3832.4,1e-08]
[1760274233372,0.1304,3833.0,3832.4,0.55830001]
[1760274233592,2.60905387,3832.9,3832.4,0.13040001]
[1760274233810,2.71845987,3832.8,3832.4,0.13040001]
[1760274234098,2.60912728,3832.7,3832.5,14.5]
[1760274234500,2.6091948,3832.6,3832.5,14.5]
[1760274235408,2.60926288,3832.5,3832.4,0.13040001]
[1760274235701,2.60921858,3832.6,3832.4,0.13040001]
[1760274235901,2.71866288,3832.5,3832.4,0.13040001]
[1760274236090,2.71866288,3832.5,3832.4,1e-08]
[1760274236888,4.63866288,3832.5,3832.4,1e-08]
[1760274238591,4.63966288,3832.5,3832.4,1e-08]
[1760274241123,1.921,3832.5,3832.4,1e-08]
[1760274241326,4.53026288,3832.5,3832.4,1e-08]
[1760274241519,4.63966288,3832.5,3832.4,1e-08]
[1760274242808,0.001,3832.5,3832.4,1e-08]
[1760274246806,2.71966288,3832.5,3832.4,1e-08]
[1760274248006,4.63966288,3832.5,3832.4,1e-08]
[1760274251124,4.77006288,3832.5,3832.4,1e-08]
[1760274256638,0.1314,3832.5,3832.4,1e-08]
[1760274257441,0.001,3832.5,3832.4,1e-08]
[1760274259320,0.001,3832.5,3832.4,0.69820001]